lending/lending_fUSD_20250706
["ID","MTS","AMOUNT","RATE_DAILY","PERIOD"]
[369996692,1751817057700,-460.0,0.00019452,2]
[369996693,1751817057709,-460.0,0.00019452,2]
[369996694,1751817057719,-591.71,0.00019452,2]
[369996695,1751817057729,-460.0,0.00019452,2]
[369996696,1751817057738,-544.47055938,0.00019452,2]
[369996697,1751817057749,-827.01,0.00019452,2]
[369996698,1751817057759,-2382.02,0.00019452,2]
[369996699,1751817057768,-589.19,0.00019452,2]
[369996700,1751817057777,-460.0,0.00019452,2]
[369996701,1751817057786,-460.0,0.00019452,2]
[369996702,1751817057796,-616.04,0.00019452,2]
[369996703,1751817057806,-460.0,0.00019452,2]
[369996704,1751817057815,-460.0,0.00019452,2]
[369996705,1751817057825,-785.56,0.00019452,2]
[369996706,1751817057835,-1436.17,0.00019452,2]
[369996707,1751817057844,-684.02,0.00019452,2]
[369996708,1751817057855,-460.0,0.00019452,2]
[369996709,1751817057866,-735.78,0.00019452,2]
[369996710,1751817057875,-460.0,0.00019452,2]
[369996711,1751817057885,-607.14,0.00019452,2]
[369996712,1751817057894,-928.53,0.00019452,2]
[369996713,1751817057908,-533.46,0.00019452,2]
[369996714,1751817057921,-460.0,0.00019452,2]
[369996715,1751817057933,-754.59,0.00019452,2]
[369996716,1751817057942,-460.0,0.00019452,2]
[369996717,1751817057952,-460.0,0.00019452,2]
[369996718,1751817057962,-2972.27,0.00019452,2]
[369996719,1751817057973,-1284.91,0.00019452,2]
[369996720,1751817057983,-3354.73,0.00019452,2]
[369996721,1751817057996,-1066.89,0.00019452,2]
[369996722,1751817058006,-657.56,0.00019452,2]
[369996723,1751817058017,-567.83,0.00019452,2]
[369996724,1751817058028,-363.7238614,0.00019452,2]
[369996725,1751817058039,-460.0,0.00019452,2]
[369996726,1751817058049,-460.0,0.00019452,2]
[369996727,1751817058059,-460.0,0.00019452,2]
[369996728,1751817058070,-978.24,0.00019452,2]
[369996729,1751817058082,-460.0,0.00019452,2]
[369996730,1751817058092,-907.39,0.00019452,2]
[369996731,1751817058102,-460.0,0.00019452,2]
[369996732,1751817058114,-502.11,0.00019452,2]
[369996733,1751817058124,-460.0,0.00019452,2]
[369996734,1751817058134,-460.0,0.00019452,2]
[369996735,1751817058144,-460.0,0.00019452,2]
[369996736,1751817058154,-2080.6,0.00019452,2]
[369996737,1751817058164,-2568.27,0.00019452,2]
[369996738,1751817058174,-522.80837631,0.00019452,2]
[369996739,1751817058184,-670.11,0.00019452,2]
[369996740,1751817058194,-460.0,0.00019452,2]
[369996741,1751817058204,-460.0,0.00019452,2]
[369996742,1751817058214,-460.0,0.00019452,2]
[369996743,1751817058224,-460.0,0.00019452,2]
[369996744,1751817058235,-219.63476963,0.00019452,2]
[369996745,1751817058248,-460.0,0.00019452,2]
[369996746,1751817058258,-708.35,0.00019452,2]
[369996747,1751817058268,-504.23,0.00019452,2]
[369996748,1751817058278,-460.0,0.00019452,2]
[369996749,1751817058288,-460.0,0.00019452,2]
[369996750,1751817058297,-869.76,0.00019452,2]
[369996751,1751817058307,-814.72,0.00019452,2]
[369996752,1751817058317,-460.0,0.00019452,2]
[369996753,1751817058327,-460.0,0.00019452,2]
[369996754,1751817058337,-611.23,0.00019452,2]
[369996755,1751817058350,-3565.49,0.00019452,2]
[369996756,1751817058360,-467.56598076,0.00019452,2]
[369996757,1751817058369,-891.75,0.00019452,2]
[369996758,1751817058379,-460.0,0.00019452,2]
[369996759,1751817058388,-460.0,0.00019452,2]
[369996760,1751817058399,-930.27,0.00019452,2]
[369996761,1751817058408,-460.0,0.00019452,2]
[369996762,1751817058419,-460.0,0.00019452,2]
[369996763,1751817058429,-460.0,0.00019452,2]
[369996764,1751817058439,-460.0,0.00019452,2]
[369996765,1751817058449,-460.0,0.00019452,2]
[369996766,1751817058459,-800.97,0.00019452,2]
[369996767,1751817058469,-460.0,0.00019452,2]
[369996768,1751817058570,-460.0,0.00019452,2]
[369996769,1751817058580,-460.0,0.00019452,2]
[369996770,1751817058590,-460.0,0.00019452,2]
[369996771,1751817058599,-1000.0,0.00019452,2]
[369996772,1751817058609,-1007.73,0.00019452,2]
[369996773,1751817058618,-1542.95,0.00019452,2]
[369996774,1751817058628,-550.0,0.00019452,2]
[369996775,1751817058639,-468.88322362,0.00019452,2]
[369996776,1751817058650,-460.0,0.00019452,2]
[369996777,1751817058661,-466.24324585,0.00019452,2]
[369996778,1751817058671,-582.77,0.00019452,2]
[369996779,1751817058683,-460.0,0.00019452,2]
[369996780,1751817058693,-890.26,0.00019452,2]
[369996781,1751817058702,-769.74,0.00019452,2]
[369996782,1751817058713,-460.0,0.00019452,2]
[369996783,1751817058721,-460.0,0.00019452,2]
[369996784,1751817058731,-611.38,0.00019452,2]
[369996785,1751817058740,-460.0,0.00019452,2]
[369996786,1751817058751,-460.0,0.00019452,2]
[369996787,1751817058760,-151.0,0.00019452,2]
[369996788,1751817058769,-151.0,0.00019452,2]
[369996789,1751817058779,-979.32,0.00019452,2]
[369996790,1751817058789,-151.0,0.00019452,2]
[369996791,1751817058798,-904.65,0.00019452,2]
[369996792,1751817058807,-151.0,0.00019452,2]
[369996793,1751817058817,-151.0,0.00019452,2]
[369996794,1751817058826,-738.53,0.00019452,2]
[369996795,1751817058836,-460.0,0.00019452,2]
[369996796,1751817058847,-3534.83,0.00019452,2]
[369996797,1751817058856,-151.0,0.00019452,2]
[369996798,1751817058867,-460.0,0.00019452,2]
[369996799,1751817058878,-151.0,0.00019452,2]
[369996800,1751817058889,-151.0,0.00019452,2]
[369996801,1751817058900,-241.953658,0.00019452,2]
[369996802,1751817058910,-1386.56,0.00019452,2]
[369996803,1751817058920,-460.0,0.00019452,2]
[369996804,1751817058930,-573.04,0.00019452,2]
[369996805,1751817058939,-460.0,0.00019452,2]
[369996806,1751817058950,-1594.31,0.00019452,2]
[369996807,1751817058959,-631.16,0.00019452,2]
[369996808,1751817058968,-460.0,0.00019452,2]
[369996809,1751817058978,-479.28,0.00019452,2]
[369996810,1751817058987,-1454.81,0.00019452,2]
[369996811,1751817058997,-967.54,0.00019452,2]
[369996812,1751817059006,-1110.47,0.00019452,2]
[369996813,1751817059015,-1142.82,0.00019452,2]
[369996814,1751817059026,-1871.49,0.00019452,2]
[369996815,1751817059035,-963.77,0.00019452,2]
[369996816,1751817059044,-1069.91,0.00019452,2]
[369996817,1751817059053,-893.99,0.00019452,2]
[369996818,1751817059063,-473.89605908,0.00019452,2]
[369996819,1751817059072,-460.0,0.00019452,2]
[369996820,1751817059082,-1079.56,0.00019452,2]
[369996821,1751817059091,-618.34,0.00019452,2]
[369996822,1751817059100,-466.05,0.00019452,2]
[369996823,1751817059110,-508.39,0.00019452,2]
[369996824,1751817059119,-1012.04,0.00019452,2]
[369996825,1751817059128,-563.96,0.00019452,2]
[369996826,1751817059137,-466.67391167,0.00019452,2]
[369996827,1751817059147,-775.78,0.00019452,2]
[369996828,1751817059156,-460.0,0.00019452,2]
[369996829,1751817059165,-460.0,0.00019452,2]
[369996830,1751817059175,-2254.76,0.00019452,2]
[369996831,1751817059184,-4951.65,0.00019452,2]
[369996832,1751817059193,-460.0,0.00019452,2]
[369996833,1751817059203,-824.69,0.00019452,2]
[369996834,1751817059211,-848.33,0.00019452,2]
[369996835,1751817059221,-460.0,0.00019452,2]
[369996836,1751817059231,-864.81,0.00019452,2]
[369996837,1751817059241,-460.0,0.00019452,2]
[369996838,1751817059251,-902.04,0.00019452,2]
[369996839,1751817059261,-515.45,0.00019452,2]
[369996840,1751817059270,-9153.25,0.00019452,2]
[369996841,1751817059279,-1151.73,0.00019452,2]
[369996842,1751817059288,-1569.87,0.00019452,2]
[369996843,1751817059298,-460.0,0.00019452,2]
[369996844,1751817059307,-460.0,0.00019452,2]
[369996845,1751817059317,-460.0,0.00019452,2]
[369996846,1751817059326,-460.0,0.00019452,2]
[369996847,1751817059336,-217.09,0.00019452,2]
[369996848,1751817059348,-460.0,0.00019452,2]
[369996849,1751817059359,-460.0,0.00019452,2]
[369996850,1751817059369,-460.0,0.00019452,2]
[369996851,1751817059381,-460.0,0.00019452,2]
[369996852,1751817059390,-1443.92,0.00019452,2]
[369996853,1751817059400,-460.0,0.00019452,2]
[369996854,1751817059409,-718.79,0.00019452,2]
[369996855,1751817059418,-415.5,0.00019452,2]
[369996856,1751817059430,-460.0,0.00019452,2]
[369996857,1751817059440,-751.81,0.00019452,2]
[369996858,1751817059450,-460.0,0.00019452,2]
[369996859,1751817059460,-639.58,0.00019452,2]
[369996860,1751817059470,-1329.42,0.00019452,2]
[369996861,1751817059479,-880.83,0.00019452,2]
[369996862,1751817059489,-1006.21,0.00019452,2]
[369996863,1751817059499,-460.0,0.00019452,2]
[369996864,1751817059508,-715.57,0.00019452,2]
[369996865,1751817059518,-2690.86,0.00019452,2]
[369996866,1751817059528,-460.0,0.00019452,2]
[369996867,1751817059539,-460.0,0.00019452,2]
[369996868,1751817059550,-460.0,0.00019452,2]
[369996869,1751817059560,-686.99,0.00019452,2]
[369996870,1751817059570,-1037.32,0.00019452,2]
[369996871,1751817059581,-646.54,0.00019452,2]
[369996872,1751817059592,-316.27,0.00019452,2]
[369996873,1751817059604,-460.0,0.00019452,2]
[369996874,1751817059615,-460.0,0.00019452,2]
[369996875,1751817059625,-58302.14,0.00019452,2]
[369996876,1751817059635,-460.0,0.00019452,2]
[369996877,1751817059644,-460.0,0.00019452,2]
[369996878,1751817059655,-713.41,0.00019452,2]
[369996879,1751817059666,-428.73071876,0.00019452,2]
[369996880,1751817059676,-460.0,0.00019452,2]
[369996881,1751817059685,-460.0,0.00019452,2]
[369996882,1751817059694,-743.47,0.00019452,2]
[369996883,1751817059703,-1522.43,0.00019452,2]
[369996884,1751817059713,-468.23,0.00019452,2]
[369996885,1751817059722,-460.0,0.00019452,2]
[369996886,1751817059731,-903.64,0.00019452,2]
[369996887,1751817059743,-460.0,0.00019452,2]
[369996888,1751817059753,-791.38,0.00019452,2]
[369996889,1751817059762,-1690.78,0.00019452,2]
[369996890,1751817059772,-715.89,0.00019452,2]
[369996891,1751817059781,-638.41,0.00019452,2]
[369996892,1751817059790,-893.56,0.00019452,2]
[369996893,1751817059799,-460.0,0.00019452,2]
[369996894,1751817059808,-460.0,0.00019452,2]
[369996895,1751817059819,-792.1,0.00019452,2]
[369996896,1751817059829,-10776.0,0.00019452,2]
[369996897,1751817059838,-832.11,0.00019452,2]
[369996898,1751817059848,-460.0,0.00019452,2]
[369996899,1751817059858,-460.0,0.00019452,2]
[369996900,1751817059868,-520.18,0.00019452,2]
[369996901,1751817059877,-460.0,0.00019452,2]
[369996902,1751817059886,-460.0,0.00019452,2]
[369996903,1751817059895,-609.33,0.00019452,2]
[369996904,1751817059904,-460.0,0.00019452,2]
[369996905,1751817059914,-460.0,0.00019452,2]
[369996906,1751817059923,-460.0,0.00019452,2]
[369996907,1751817059933,-460.0,0.00019452,2]
[369996908,1751817059942,-460.0,0.00019452,2]
[369996909,1751817059951,-726.45,0.00019452,2]
[369996910,1751817059961,-935.68,0.00019452,2]
[369996911,1751817059971,-468.9513141,0.00019452,2]
[369996912,1751817059980,-460.0,0.00019452,2]
[369996913,1751817059989,-567.59,0.00019452,2]
[369996914,1751817060000,-1217.28,0.00019452,2]
[369996915,1751817060009,-460.0,0.00019452,2]
[369996916,1751817060019,-642.69,0.00019452,2]
[369996917,1751817060028,-460.0,0.00019452,2]
[369996918,1751817060038,-786.46,0.00019452,2]
[369996919,1751817060048,-561.24,0.00019452,2]
[369996920,1751817060058,-613.98,0.00019452,2]
[369996921,1751817060067,-1948.19,0.00019452,2]
[369996922,1751817060077,-466.88218963,0.00019452,2]
[369996923,1751817060086,-460.0,0.00019452,2]
[369996924,1751817060097,-1442.84,0.00019452,2]
[369996925,1751817060107,-630.26,0.00019452,2]
[369996926,1751817060116,-460.0,0.00019452,2]
[369996927,1751817060126,-460.0,0.00019452,2]
[369996928,1751817060135,-556.72,0.00019452,2]
[369996929,1751817060145,-460.0,0.00019452,2]
[369996930,1751817060155,-2052.37,0.00019452,2]
[369996931,1751817060166,-577.98,0.00019452,2]
[369996932,1751817060176,-803.35,0.00019452,2]
[369996933,1751817060187,-460.0,0.00019452,2]
[369996934,1751817060196,-460.0,0.00019452,2]
[369996935,1751817060207,-757.92,0.00019452,2]
[369996936,1751817060217,-460.0,0.00019452,2]
[369996937,1751817060227,-460.0,0.00019452,2]
[369996938,1751817060237,-460.0,0.00019452,2]
[369996939,1751817060247,-1693.69,0.00019452,2]
[369996940,1751817060257,-479.81,0.00019452,2]
[369996941,1751817060266,-460.0,0.00019452,2]
[369996942,1751817060276,-657.25,0.00019452,2]
[369996943,1751817060286,-4595.99,0.00019452,2]
[369996944,1751817060296,-460.0,0.00019452,2]
[369996945,1751817060306,-1076.48,0.00019452,2]
[369996946,1751817060316,-460.0,0.00019452,2]
[369996947,1751817060326,-643.28,0.00019452,2]
[369996948,1751817060336,-722.38,0.00019452,2]
[369996949,1751817060350,-469.19890222,0.00019452,2]
[369996950,1751817060360,-706.46,0.00019452,2]
[369996951,1751817060369,-460.0,0.00019452,2]
[369996952,1751817060379,-460.0,0.00019452,2]
[369996953,1751817060389,-460.0,0.00019452,2]
[369996954,1751817060398,-662.68,0.00019452,2]
[369996955,1751817060407,-460.0,0.00019452,2]
[369996956,1751817060418,-1464.14,0.00019452,2]
[369996957,1751817060428,-871.65,0.00019452,2]
[369996958,1751817060439,-2975.3,0.00019452,2]
[369996959,1751817060448,-1478.02,0.00019452,2]
[369996960,1751817060458,-753.79,0.00019452,2]
[369996961,1751817060467,-1815.31,0.00019452,2]
[369996962,1751817060476,-460.0,0.00019452,2]
[369996963,1751817060486,-1014.65,0.00019452,2]
[369996964,1751817060495,-460.0,0.00019452,2]
[369996965,1751817060504,-918.35,0.00019452,2]
[369996966,1751817060514,-460.0,0.00019452,2]
[369996967,1751817060523,-1881.63,0.00019452,2]
[369996968,1751817060532,-460.0,0.00019452,2]
[369996969,1751817060541,-460.0,0.00019452,2]
[369996970,1751817060550,-802.2,0.00019452,2]
[369996971,1751817060559,-460.0,0.00019452,2]
[369996972,1751817060568,-460.0,0.00019452,2]
[369996973,1751817060578,-460.0,0.00019452,2]
[369996974,1751817060588,-1219.58,0.00019452,2]
[369996975,1751817060599,-2805.73,0.00019452,2]
[369996976,1751817060608,-1221.61,0.00019452,2]
[369996977,1751817060619,-460.0,0.00019452,2]
[369996978,1751817060628,-582.02,0.00019452,2]
[369996979,1751817060639,-460.0,0.00019452,2]
[369996980,1751817060649,-571.17,0.00019452,2]
[369996981,1751817060659,-1215.91,0.00019452,2]
[369996982,1751817060669,-460.0,0.00019452,2]
[369996983,1751817060680,-663.45,0.00019452,2]
[369996984,1751817060690,-799.98,0.00019452,2]
[369996985,1751817060700,-2499.03,0.00019452,2]
[369996986,1751817060709,-460.0,0.00019452,2]
[369996987,1751817060718,-460.0,0.00019452,2]
[369996988,1751817060728,-460.0,0.00019452,2]
[369996989,1751817060737,-525.51,0.00019452,2]
[369996990,1751817060747,-460.0,0.00019452,2]
[369996991,1751817060756,-2980.59,0.00019452,2]
[369996992,1751817060765,-460.0,0.00019452,2]
[369996993,1751817060775,-460.0,0.00019452,2]
[369996994,1751817060786,-1239.68,0.00019452,2]
[369996995,1751817060795,-460.0,0.00019452,2]
[369996996,1751817060805,-460.0,0.00019452,2]
[369996997,1751817060814,-460.0,0.00019452,2]
[369996998,1751817060823,-956.64,0.00019452,2]
[369996999,1751817060833,-9955.11,0.00019452,2]
[369997000,1751817060842,-335.87,0.00019452,2]
[369997001,1751817060851,-706.05,0.00019452,2]
[369997002,1751817060861,-418.35770576,0.00019452,2]
[369997003,1751817060870,-3013.54,0.00019452,2]
[369997004,1751817060882,-671.78,0.00019452,2]
[369997005,1751817060893,-1092.19,0.00019452,2]
[369997006,1751817060903,-1770.54,0.00019452,2]
[369997007,1751817060913,-460.0,0.00019452,2]
[369997008,1751817060922,-460.0,0.00019452,2]
[369997009,1751817060931,-2477.38,0.00019452,2]
[369997010,1751817060940,-460.0,0.00019452,2]
[369997011,1751817060950,-2204.47,0.00019452,2]
[369997012,1751817060959,-460.0,0.00019452,2]
[369997013,1751817060969,-860.22,0.00019452,2]
[369997014,1751817060979,-460.0,0.00019452,2]
[369997015,1751817060988,-783.12,0.00019452,2]
[369997016,1751817060998,-853.19,0.00019452,2]
[369997017,1751817061007,-460.0,0.00019452,2]
[369997018,1751817061016,-460.0,0.00019452,2]
[369997019,1751817061026,-460.0,0.00019452,2]
[369997020,1751817061035,-1326.72,0.00019452,2]
[369997021,1751817061045,-523.959475,0.00019452,2]
[369997022,1751817061055,-460.0,0.00019452,2]
[369997023,1751817061065,-460.0,0.00019452,2]
[369997024,1751817061074,-490.0,0.00019452,2]
[369997025,1751817061084,-460.0,0.00019452,2]
[369997026,1751817061094,-460.0,0.00019452,2]
[369997027,1751817061105,-1235.98,0.00019452,2]
[369997028,1751817061115,-817.21,0.00019452,2]
[369997029,1751817061124,-460.0,0.00019452,2]
[369997030,1751817061134,-460.0,0.00019452,2]
[369997031,1751817061143,-460.0,0.00019452,2]
[369997032,1751817061152,-430.99,0.00019452,2]
[369997033,1751817061162,-584.24810888,0.00019452,2]
[369997034,1751817061171,-144485.68779516,0.00019452,2]
[369997035,1751817061181,-500.0,0.00019472,2]
[369997036,1751817061190,-537.39928914,0.00019473,2]
[369997037,1751817061200,-500.0,0.00019473,2]
[369997038,1751817061209,-500.0,0.00019473,2]
[369997039,1751817061219,-500.0,0.00019473,2]
[369997040,1751817061229,-500.0,0.00019473,2]
[369997041,1751817061238,-500.0,0.00019473,2]
[369997042,1751817061248,-159.85647957,0.00019473,2]
[369997043,1751817061257,-500.0,0.00019473,2]
[369997044,1751817061265,-453.60180086,0.00019473,2]
[369997045,1751817061275,-159.88568066,0.00019473,2]
[369997046,1751817061285,-500.2478884,0.00019473,2]
[369997047,1751817061294,-500.0,0.00019473,2]
[369997048,1751817061305,-159.88582847,0.00019473,2]
[369997049,1751817061314,-501.52885581,0.00019473,2]
[369997050,1751817061324,-159.86345061,0.00019473,2]
[369997051,1751817061334,-501.35244609,0.00019473,2]
[369997052,1751817061348,-516.14772785,0.00019473,2]
[369997053,1751817061358,-160.87652697,0.00019473,2]
[369997054,1751817061367,-161.82547671,0.00019473,2]
[369997055,1751817061377,-543.23082246,0.0001948,2]
[369997056,1751817061387,-400.47540747,0.000195,2]
[369997057,1751817061398,-1443.75856936,0.00019521,2]
[369997058,1751817061409,-151.0,0.0001953,2]
[369997059,1751817061419,-543.23082246,0.0001954,2]
[369997060,1751817061429,-150.0,0.0001956,2]
[369997061,1751817061440,-168.0,0.00019571,2]
[369997062,1751817061448,-2500.0,0.00019578,2]
[369997063,1751817061458,-151.0,0.00019595,2]
[369997064,1751817061467,-543.23082246,0.000196,2]
[369997065,1751817061477,-424.0,0.00019604,2]
[369997066,1751817061486,-536.2,0.00019622,2]
[369997067,1751817061495,-500.0,0.00019627,2]
[369997068,1751817061505,-500.0,0.00019627,2]
[369997069,1751817061515,-500.0,0.00019627,2]
[369997070,1751817061524,-500.0,0.00019627,2]
[369997071,1751817061534,-500.0,0.00019627,2]
[369997072,1751817061543,-500.0,0.00019627,2]
[369997073,1751817061554,-500.0,0.00019627,2]
[369997074,1751817061563,-500.0,0.00019627,2]
[369997075,1751817061573,-2532.33276781,0.00019654,2]
[369997076,1751817061582,-543.23082246,0.0001966,2]
[369997077,1751817061592,-151.0,0.00019661,2]
[369997078,1751817061601,-424.0,0.00019667,2]
[369997079,1751817061609,-1543.54,0.0001969,2]
[369997080,1751817061619,-165.5,0.00019703,2]
[369997081,1751817061628,-543.23082246,0.0001972,2]
[369997082,1751817061637,-300.0,0.00019725,2]
[369997083,1751817061646,-500.0,0.00019725,2]
[369997084,1751817061655,-500.0,0.00019725,2]
[369997085,1751817061664,-626.85,0.00019725,2]
[369997086,1751817061673,-152.94998632,0.00019725,2]
[369997087,1751817061683,-500.0,0.00019725,2]
[369997088,1751817061692,-500.0,0.00019725,2]
[369997089,1751817061701,-207.0,0.00019726,2]
[369997090,1751817061711,-207.0,0.00019726,2]
[369997091,1751817061720,-207.0,0.00019726,2]
[369997092,1751817061730,-207.0,0.00019726,2]
[369997093,1751817061740,-207.0,0.00019726,2]
[369997094,1751817061751,-232.077409,0.00019726,2]
[369997095,1751817061760,-459.6467,0.00019726,2]
[369997096,1751817061770,-368.57731,0.00019726,2]
[369997097,1751817061779,-835.478674,0.00019726,2]
[369997098,1751817061789,-151.0,0.00019726,2]
[369997099,1751817061798,-151.0,0.00019726,2]
[369997100,1751817061808,-151.0,0.00019726,2]
[369997101,1751817061817,-460.0,0.00019726,2]
[369997102,1751817061827,-460.0,0.00019726,2]
[369997103,1751817061836,-556.86149962,0.00019726,2]
[369997104,1751817061846,-527.9793405,0.00019726,2]
[369997105,1751817061856,-151.0,0.00019726,2]
[369997106,1751817061865,-151.0,0.00019726,2]
[369997107,1751817061875,-460.0,0.00019726,2]
[369997108,1751817061884,-276.4,0.00019726,2]
[369997109,1751817061894,-600.45,0.00019726,2]
[369997110,1751817061903,-460.0,0.00019726,2]
[369997111,1751817061912,-460.0,0.00019726,2]
[369997112,1751817061922,-460.0,0.00019726,2]
[369997113,1751817061931,-460.0,0.00019726,2]
[369997114,1751817061941,-460.0,0.00019726,2]
[369997115,1751817061951,-519.31,0.00019726,2]
[369997116,1751817061961,-460.0,0.00019726,2]
[369997117,1751817061970,-460.0,0.00019726,2]
[369997118,1751817061981,-460.0,0.00019726,2]
[369997119,1751817061991,-460.0,0.00019726,2]
[369997120,1751817062001,-460.0,0.00019726,2]
[369997121,1751817062011,-460.0,0.00019726,2]
[369997122,1751817062020,-268.72014975,0.00019726,2]
[369997123,1751817062030,-369.10368773,0.00019726,2]
[369997124,1751817062039,-460.0,0.00019726,2]
[369997125,1751817062049,-460.0,0.00019726,2]
[369997126,1751817062059,-460.0,0.00019726,2]
[369997127,1751817062068,-460.0,0.00019726,2]
[369997128,1751817062078,-378.35553031,0.00019726,2]
[369997129,1751817062088,-460.0,0.00019726,2]
[369997130,1751817062097,-460.0,0.00019726,2]
[369997131,1751817062107,-460.0,0.00019726,2]
[369997132,1751817062116,-460.0,0.00019726,2]
[369997133,1751817062126,-467.10563884,0.00019726,2]
[369997134,1751817062135,-460.0,0.00019726,2]
[369997135,1751817062146,-460.0,0.00019726,2]
[369997136,1751817062156,-226.09,0.00019726,2]
[369997137,1751817062167,-460.0,0.00019726,2]
[369997138,1751817062178,-469.71900643,0.00019726,2]
[369997139,1751817062188,-365.01901925,0.00019726,2]
[369997140,1751817062197,-460.0,0.00019726,2]
[369997141,1751817062207,-498.16130517,0.00019726,2]
[369997142,1751817062216,-460.0,0.00019726,2]
[369997143,1751817062226,-460.0,0.00019726,2]
[369997144,1751817062239,-460.0,0.00019726,2]
[369997145,1751817062249,-460.0,0.00019726,2]
[369997146,1751817062260,-460.0,0.00019726,2]
[369997147,1751817062269,-460.0,0.00019726,2]
[369997148,1751817062280,-460.0,0.00019726,2]
[369997149,1751817062290,-471.74429258,0.00019726,2]
[369997150,1751817062299,-460.0,0.00019726,2]
[369997151,1751817062309,-460.0,0.00019726,2]
[369997152,1751817062319,-654.52,0.00019726,2]
[369997153,1751817062329,-460.0,0.00019726,2]
[369997154,1751817062339,-460.0,0.00019726,2]
[369997155,1751817062352,-460.0,0.00019726,2]
[369997156,1751817062361,-460.0,0.00019726,2]
[369997157,1751817062371,-460.0,0.00019726,2]
[369997158,1751817062380,-543.04,0.00019726,2]
[369997159,1751817062391,-460.0,0.00019726,2]
[369997160,1751817062401,-460.0,0.00019726,2]
[369997161,1751817062410,-470.56834511,0.00019726,2]
[369997162,1751817062421,-573.58,0.00019726,2]
[369997163,1751817062431,-460.0,0.00019726,2]
[369997164,1751817062441,-460.0,0.00019726,2]
[369997165,1751817062451,-477.62,0.00019726,2]
[369997166,1751817062461,-460.0,0.00019726,2]
[369997167,1751817062471,-502.55058066,0.00019726,2]
[369997168,1751817062481,-467.30976666,0.00019726,2]
[369997169,1751817062490,-606.86,0.00019726,2]
[369997170,1751817062500,-600.04919587,0.00019726,2]
[369997171,1751817062511,-484.22,0.00019726,2]
[369997172,1751817062521,-460.0,0.00019726,2]
[369997173,1751817062531,-460.0,0.00019726,2]
[369997174,1751817062541,-460.0,0.00019726,2]
[369997175,1751817062551,-254.25394947,0.00019726,2]
[369997176,1751817062561,-460.0,0.00019726,2]
[369997177,1751817062571,-531.47439211,0.00019726,2]
[369997178,1751817062581,-460.0,0.00019726,2]
[369997179,1751817062591,-460.0,0.00019726,2]
[369997180,1751817062601,-460.0,0.00019726,2]
[369997181,1751817062611,-153.24407922,0.00019726,2]
[369997182,1751817062620,-700.28,0.00019726,2]
[369997183,1751817062630,-150.0,0.00019726,2]
[369997184,1751817062640,-460.0,0.00019726,2]
[369997185,1751817062650,-460.0,0.00019726,2]
[369997186,1751817062660,-501.2,0.00019726,2]
[369997187,1751817062670,-675.77,0.00019726,2]
[369997188,1751817062681,-617.59,0.00019726,2]
[369997189,1751817062690,-150.0,0.00019726,2]
[369997190,1751817062700,-460.0,0.00019726,2]
[369997191,1751817062711,-460.0,0.00019726,2]